[Event "European Chess Club Cup 2022"]
[Site "Mayrhofen"]
[Date "2022.10.06"]
[Round "4"]
[White "Carlsen, Magnus"]
[Black "Harikrishna, Pentala"]
[Result "1-0"]
[WhiteElo "2856"]
[BlackElo "2717"]
[ECO "A20"]
[EventDate "2022.??.??"]
[Annotator "rafael"]
[PlyCount "85"]
[Beauty "7490980828680"]
[EventType "team-tourn"]
[TimeControl "5400+30"]

1.c4 e5 2.g3 c6 {A variation of the English Opening that is being discussed a lot these days.} 3.d4 {This move is usually Carlsen's choice, while Ding prefers 3.Nf3. As it turns out, some opening choices are a matter of taste.} ( 3.Nf3 {Ding lost a painful game in the first round of the Candidates Tournament with his favorite move.} 3...e4 4.Nd4 d5 5.cxd5 Qxd5 6.Nc2 Nf6 7.Nc3 Qe5 {Ding-Nepomniachtchi, Madrid 2022.} ) 3...Bb4+ ( 3...e4 {is the main move.} ) 4.Bd2 Bxd2+ 5.Qxd2 d6 6.Nc3 Nf6 7.e4 {Interestingly, only one game had been played with this move. It's not surprising that almost everyone prefers to develop the bishop on g2—what could be more natural than that $2 But Carlsen doesn't play like us mere mortals.} ( 7.Bg2 ) 7...O-O 8.Nge2 ( 8.Bg2 {Now the game gains an original character. 8.Bg2 still transposes to the known lines.} ) 8...b5 $1 {An excellent reaction. Harikrishna takes advantage of the fact that the e4-pawn needs protection.} 9.cxb5 cxb5 10.a3 {Played after a long deliberation. The alternatives don't promise an advantage.} ( 10.dxe5 dxe5 11.Qxd8 Rxd8 12.Nxb5 Nc6 {and Black has excellent compensation for the sacrificed pawn.} ) ( 10.Bg2 b4 11.Nd5 Nxd5 12.exd5 exd4 13.O-O d3 $1 14.Qxd3 ( 14.Nd4 Qb6 ) 14...Ba6 15.Qd2 Bxe2 16.Qxe2 Nd7 {and the knight arrives on c5. Black has a great position.} ) 10...a5 ( 10...Nc6 {is a good alternative.} 11.Bg2 Qb6 {with a balanced position.} ) 11.Bg2 Bb7 $6 ( 11...Nc6 {is more accurate.} 12.d5 Na7 13.O-O Bd7 14.b4 Nc8 $1 {Followed by Nb6, with a good position.} ) 12.O-O b4 {Black's plan to advance the b-pawn quickly creates some weaknesses.} 13.axb4 axb4 14.Nd5 Nxd5 {It is difficult to say which piece should be used to capture the d5-knight. I would have played the same move Harikrishna played, but the computer prefers to take it with the bishop.} ( 14...Bxd5 15.exd5 Rxa1 16.Rxa1 Qb6 {with a slight advantage for White.} ) 15.exd5 Qb6 16.Rxa8 Bxa8 17.dxe5 dxe5 {It's time to evaluate the position. White has a strong passed pawn on d5, but it can also become a target. It's not clear that there is an advantage until we look at the wonderful move that is played now.} 18.g4 $3 {Maybe it's an exaggeration to assign two exclamation marks, but I love this kind of move. The idea is to bring the knight into the game. Chess players don't like to advance pawns in front of the king, but sometimes it's necessary.} 18...Nd7 19.Ng3 g6 {This move is necessary to give the king some air and prevent the white knight from jumping.} 20.Rc1 ( 20.Rd1 $1 {is more accurate, as becomes clear if we continue the analysis in a similar way to what happened in the game.} 20...Rd8 21.Ne4 Nf6 $6 22.Nxf6+ Qxf6 23.Qxb4 {and here White has a decisive advantage because the d5-pawn is protected.} ) 20...Rd8 21.Ne4 Nf6 $5 ( 21...Qd4 $6 {Another advantage of the rook on d1 is to prevent this move.} 22.Qxd4 exd4 23.Rd1 Bxd5 24.Rxd4 Bxe4 25.Bxe4 Re8 26.Rxb4 {and White should win this endgame.} ) ( 21...Kg7 $5 {is also a good try.} ) 22.Nxf6+ Qxf6 23.Rc5 ( 23.Qxb4 $6 {Black's idea is that this move is now a mistake.} 23...Bxd5 ( 23...e4 $5 {is probably even better.} ) 24.Bxd5 Rxd5 {with a probable draw.} ) 23...Qb6 ( 23...Qd6 $1 {is an excellent try.} 24.Qe3 ( 24.Qxb4 e4 $1 {Of course, this is a computer idea, nearly impossible to find. Black now has enough counterplay.} 25.Rb5 ( 25.Bxe4 Qf4 $1 {is Black's idea.} ) 25...Bxd5 {and Black should escape.} ) 24...f5 25.gxf5 gxf5 26.Ra5 Rc8 {with good drawing chances.} ) 24.Qe3 ( 24.Qc1 {is also possible.} ) 24...Qa7 25.Qc1 Bb7 26.h4 $1 {Another excellent move, creating problems for Black on the kingside.} 26...Qb6 27.h5 h6 {A sad but necessary move—otherwise, White puts the pawn on h6 and creates mating threats.} 28.Qe3 ( 28.hxg6 {looks very promising.} 28...Qxg6 ( 28...fxg6 29.Qc4 {and the black king is in trouble.} ) 29.Rb5 $1 {threatening 30.Rxb4 and 30.Qc7.} ) 28...gxh5 $2 {This move loses thanks to a nice tactical theme.} ( 28...Rd6 $1 {is the best chance.} ) 29.Rc8 $1 {Now White wins material.} 29...Qd6 ( 29...Qxe3 30.Rxd8+ ) 30.Rxd8+ Qxd8 31.Qxh6 $1 Bxd5 ( 31...hxg4 32.Be4 Bxd5 33.Qh7+ Kf8 34.Qh8+ Ke7 35.Qxd8+ Kxd8 36.Bxd5 {wins the bishop.} ) 32.Qd2 $1 {White's queen has played a tremendous role and will finally reap the reward.} 32...hxg4 33.Qxd5 Qxd5 34.Bxd5 {The endgame is easily winning.} 34...Kg7 35.Kg2 f5 36.Kg3 Kf6 37.Kh4 e4 38.Bc6 Ke5 39.Kg3 Kd4 40.Kf4 Kd3 41.Kxf5 e3 42.fxe3 Kxe3 43.b3 $1 {The only winning move. Another great game in Carlsen's trademark style.} ( 43.Kxg4 $4 b3 $1 {and the game would finish in a draw as the b-pawn cannot be protected.} ) ( 43.b3 $1 g3 44.Kg4 Kf2 45.Kh3 $18 ) 1-0

[Event "E Women's Candidates Tournament 2022"]
[Site "Monaco"]
[Date "2022.10.30"]
[Round "7"]
[White "Muzychuk, Anna"]
[Black "Koneru, Humpy"]
[Result "1/2-1/2"]
[WhiteElo "2534"]
[BlackElo "2574"]
[ECO "C43"]
[EventDate "2022.??.??"]
[Annotator "rafael"]
[PlyCount "66"]
[Beauty "6533740031554"]
[EventType "team-tourn"]
[EventCountry "FID"]
[TimeControl "5400+30"]

1.e4 e5 2.Nf3 Nf6 {Here we have the good old Petroff again. Is this defense taking the Berlin's place as Black's bulletproof option against 1. e4 $2} 3.d4 Nxe4 4.dxe5 d5 5.Nbd2 Nxd2 ( 5...Qd7 {was played by Nepomniachtchi in the last round of the Candidates Tournament against Duda.} ) ( 5...Nc5 {is also a popular move.} ) 6.Bxd2 Be7 7.Bd3 c5 8.c3 Bg4 ( 8...Nc6 {is more common.} ) 9.h3 Bh5 10.Bf5 $5 {Muzychuk had put her bishop on f5 also in the first game and now tries it six moves earlier. It's a new and interesting idea. In combination with g2-g4, the bishop on f5 creates discomfort for Black. I remember analyzing a similar idea in the Open Ruy Lopez.} ( 10.Qe2 {was played in Dichev-Stoyanov, Primorsko 2016.} ) ( {The first game of the tiebreak went} 10.O-O Nc6 11.Re1 Qd7 12.Bf4 a6 13.a4 Nd8 14.g4 Ne6 15.Bg3 Bg6 16.Bf5 Qc6 17.a5 h5 {with a draw after 32 moves.} ) 10...Nc6 11.g4 $1 Bg6 12.Qe2 {This is the idea. White plans to castle queenside and then play h4-h5. Black needs to be fast.} 12...Qb6 $6 {Too slow.} ( 12...O-O $1 {is better, with the idea of playing Re8 quickly and exploiting the pin on the e-pawn.} ) 13.O-O-O Bxf5 {A sad necessity.} ( 13...O-O 14.h4 $1 {White's attack is very strong.} ) 14.gxf5 O-O-O 15.Rhg1 Rhe8 $6 {A move that looks interesting, sacrificing a pawn, but White gets the advantage. I must remember that this was a rapid game, so this move was a good practical chance.} ( 15...Rhg8 16.Bf4 {With a clear advantage.} ( 16.Ng5 {is tempting, but not so strong since Black has drawing chances in the endgame after} 16...Nxe5 $1 17.Qxe5 Bxg5 18.Bxg5 f6 19.Qe6+ Qxe6 20.fxe6 fxg5 21.Rxg5 Rge8 22.Rgxd5 Rxd5 23.Rxd5 Rxe6 24.Rxc5+ Kd7 ) ) 16.Rxg7 Bf6 17.Rxf7 Bxe5 ( 17...Nxe5 18.Nxe5 Rxe5 19.Qg4 {White is much better.} ) 18.Qf1 $2 {The machine indicates a greedy continuation that gives White a winning advantage.} ( 18.Nxe5 Nxe5 19.Rxh7 $1 {Not afraid of a discovered attack.} 19...Nc4 20.Be3 $1 {and White defends everything.} ) 18...Qa5 $2 ( 18...Na5 $1 {is a better chance to create counterplay; the knight heads to c4. The position is unclear after} 19.Nxe5 Rxe5 20.Bg5 Rde8 ) 19.Kb1 Qa4 20.Bg5 $2 {This move allows Black an incredible resource, as the c3-pawn is now susceptible to a sacrifice from the black bishop.} ( 20.Re1 $1 {is much better for White.} ) 20...Rd6 $2 {Missing the chance, but to be honest the idea is nearly impossible to find.} ( 20...Bxc3 $3 21.bxc3 d4 $3 {Believe it or not, the computer indicates a draw by perpetual check now.} 22.cxd4 ( 22.Bxd8 $2 dxc3 {and Black even wins.} ) 22...Qb4+ 23.Ka1 Qc3+ 24.Kb1 Qb4+ ) 21.Rxh7 $2 ( 21.Re1 $1 {Again this move is necessary, pinning the e5-bishop.} ) 21...Bxc3 $1 {This time Koneru seizes the opportunity.} 22.b3 $6 ( 22.bxc3 {is scientifically the best move, but no one can blame Muzychuk for not playing like that, as Black's attack looks deadly.} 22...Ne5 ( 22...Na5 $6 23.Rh6 $1 {This is a critical and very-difficult-to-find resource.} ) ( 22...Nb4 23.Rd2 ( 23.cxb4 $2 Qxb4+ 24.Kc2 Rb6 $19 ) 23...Rb6 24.Rh6 $1 ( 24.Rb2 $2 Nxa2 $1 25.Rxb6 Nxc3+ 26.Kb2 axb6 27.Kxc3 Qa3+ 28.Kc2 Qa2+ $17 ) 24...Nxa2+ 25.Rxb6 Nxc3+ 26.Kb2 axb6 27.Kxc3 Qa3+ 28.Kc2 Qa2+ 29.Kc3 Qa3+ ) 23.Rh6 $1 ( 23.Nxe5 $2 Rb6+ 24.Ka1 Qc2 {followed by mate in a few moves.} ) 23...Rxh6 24.Bxh6 Qe4+ 25.Ka1 Qxf3 {and I prefer Black.} ) 22...Qa5 ( 22...Qa3 23.Bc1 Qb4 {is possible. We will soon see this variation again.} ) 23.Bf4 Nb4 $2 ( 23...Qa3 $1 24.Bc1 Qb4 {White's dangerous bishop is driven back, and Black has the advantage due to more active pieces, better pawn structure, and safer king.} ) 24.a4 Rc6 $2 {This move loses.} ( 24...Rd7 $1 {is necessary:} 25.Rxd7 Kxd7 {with an unclear position.} ) 25.Qb5 $1 {A surprising and spectacular move.} 25...Qxb5 ( 25...Qb6 {This move doesn't save Black.} 26.Rg1 c4 27.Ne5 $1 Bxe5 28.Bxe5 {with a winning advantage since the bishop cannot be captured.} 28...Rxe5 29.Rg8+ ) 26.axb5 Re2 {The last chance.} ( 26...Rb6 27.Rc7+ Kd8 28.Rxc5 {and the position falls apart.} ) 27.Bd2 ( 27.Rd2 {is also winning.} 27...Bxd2 28.Rh8+ $1 Kd7 29.bxc6+ Kxc6 30.Bxd2 Rxf2 31.Ne5+ Kd6 32.Bxb4 cxb4 33.Nd3 Rxf5 34.Nxb4 {And White won't have problems converting this endgame with an extra piece.} ) 27...Bxd2 28.bxc6 Bc3 29.cxb7+ Kb8 30.Rg1 $2 {This move allows perpetual check.} ( 30.Nd2 $1 {is the correct winning move. It's not hard to spot since it's very logical, but the resulting variations are quite complicated.} 30...Bxd2 31.Rg1 ( 31.Rxd2 Rxd2 32.f6 {The computer shows this is also winning, but I imagine a human being scared of a perpetual check here.} ) 31...Bg5 {This position reminds me of the famous Dvoretsky's exercises: many tempting moves but only one of them is winning and the right one is very difficult to find.} 32.h4 $3 ( 32.Rxg5 $2 Re1+ 33.Kb2 Re2+ 34.Kc1 Na2+ {with perpetual check.} ) ( 32.f4 $2 Na2 $1 33.Rg3 ( 33.Rxg5 Nc3+ 34.Kc1 Na2+ 35.Kd1 Nc3+ {with a draw.} ) 33...c4 $1 34.bxc4 dxc4 35.fxg5 c3 {and surprisingly Black creates counterplay.} ) 32...Na2 ( 32...Bd8 33.f6 Rxf2 34.Rg8 Rf1+ 35.Kb2 Rf2+ 36.Kc1 {Here Black has no perpetual check.} 36...Nd3+ 37.Kb1 ) 33.Rg3 c4 {Here White is able to win because of the f2-pawn $1} 34.hxg5 c3 35.Re3 $3 {The only winning move.} 35...c2+ 36.Kxa2 Rxe3 ( 36...c1=Q+ 37.Rxe2 $18 ) 37.Kb2 {Black's resources are finally exhausted.} ) 30...Rb2+ 31.Kc1 Nd3+ 32.Kd1 Nxf2+ 33.Kc1 Nd3+ {A fascinating game $1} 1/2-1/2

[Event "Chess.com Global Championship 2022 - Fi"]
[Site "Chess.com"]
[Date "2022.11.02"]
[Round "4"]
[White "Nakamura, Hikaru"]
[Black "Duda, Jan Krzysztof"]
[Result "1-0"]
[WhiteElo "2768"]
[BlackElo "2731"]
[ECO "C65"]
[EventDate "2022.??.??"]
[Annotator "rafael"]
[PlyCount "63"]
[Beauty "8247679390217"]
[EventType "team-tourn"]
[TimeControl "900+2"]

1.e4 e5 2.Nf3 Nc6 3.Bb5 Nf6 4.d3 Bc5 5.c3 d5 ( 5...O-O {This move is more popular and is usually Nakamura's choice when playing the black side of this variation. Duda, however, has played 5...d5 a few times before.} ) 6.exd5 Qxd5 7.Bc4 Qd6 8.Nbd2 Bf5 9.b4 ( 9.Qe2 {was played in Hansen-Duda, Oslo (rapid) 2022.} ) 9...Bb6 10.Ng5 {Now the game takes on a forcing character and simplifications are inevitable. All is still well-known for both players.} 10...O-O 11.Nde4 Nxe4 12.dxe4 Qxd1+ 13.Kxd1 Bg4+ 14.Kc2 h6 15.Nf3 {White sacrifices a pawn but expects good compensation thanks to the bishop pair. The bishop on c4 is particularly dangerous.} 15...Bxf2 {Here or on the next move, Black could capture the knight on f3, avoiding the novelty that will be played by Nakamura. This has been tried before and White has managed to get adequate compensation, though it's not entirely clear that it's enough for the advantage. Anyway, it's clear that the move played in the game is superior.} ( 15...Bxf3 16.gxf3 Bxf2 17.Rf1 Bh4 18.a4 {Matlakov - Goryachkina, Ufa 2021.} ) 16.Rf1 Bb6 17.a4 a6 18.Nh4 $1 {Here's Nakamura's opening novelty. As usual, the computer is able to find equality, but the task is not easy when you are surprised in the game. It's no wonder that Duda now spent about 3 minutes and played an inaccuracy.} ( 18.Ba3 Rfe8 $1 {No fear of leaving the f7-pawn unprotected.} 19.Rad1 Be6 20.Bxe6 Rxe6 {was OK for Black in Grandelius - Duda, Aimchess Rapid 2022.} ) 18...Nd8 $6 {After this move White has the advantage.} ( 18...Be6 {I believe this is the most practical solution.} 19.Bxe6 fxe6 20.Nf3 ( 20.Ba3 $2 Rf4 $1 {and Black has the advantage.} ) 20...Nd8 $5 {Other moves are also possible, but I like this one, taking the knight to f7. Black is close to equality.} ( 20...Ne7 ) ( 20...Rf6 ) ) 19.a5 Ba7 20.Nf5 Ne6 $2 {Now White has a tactical chance.} ( 20...Re8 {is better, although White has a very pleasant compensation for the pawn.} ) 21.Bxh6 $1 {Nakamura never misses these tactical shots.} 21...Bxf5 ( 21...gxh6 22.Nxh6+ Kg7 23.Nxg4 ) 22.exf5 gxh6 23.fxe6 fxe6 24.Bxe6+ Kg7 25.Rad1 {As is well-known, bishops of opposite colors usually offer good chances of a draw in endgames, but interestingly here Black's position is lost. This is mainly due to the pawn structure, as we will see in some moves.} 25...Rxf1 ( 25...Kg6 26.Rxf8 Rxf8 27.Rd7 Bb8 28.Bd5 {The position is winning for White. Poor b8-bishop.} ) 26.Rxf1 Rf8 {This is forced, otherwise White invades the seventh rank. But now the real problem of the position appears...} 27.Rxf8 Kxf8 28.Bc8 $1 {White gains a pawn on the queenside. Often a pawn advantage is not enough to win in opposite-colored bishop positions, but here it's important to note the pawn structure on the kingside as well. White manages to create passed pawns on both sides of the board and this is fatal.} 28...b6 29.Bxa6 c5 ( 29...bxa5 30.bxa5 {And after stabilizing the position and advancing the kingside, White wins easily, for example:} 30...e4 31.Bb7 e3 32.Kd3 Ke7 33.Ke2 Kf6 34.Kf3 Ke5 35.Ba6 Bc5 36.Bd3 Ba7 37.a6 Bb6 38.g4 Ba7 39.h4 {and so on.} ) 30.Bb5 cxb4 31.a6 $1 bxc3 32.g4 {White will capture the c3-pawn, advance the pawns on the kingside, and march with the king to the queenside.} 1-0

[Event "Chess.com Global Championship 2022 - Fi"]
[Site "Chess.com"]
[Date "2022.11.06"]
[Round "3"]
[White "So, Wesley"]
[Black "Nihal, Sarin"]
[Result "1-0"]
[WhiteElo "2760"]
[BlackElo "2670"]
[ECO "C42"]
[EventDate "2022.??.??"]
[Annotator "rafael"]
[PlyCount "67"]
[Beauty "8111318119434"]
[EventType "team-tourn"]
[TimeControl "900+2"]

1.e4 e5 2.Nf3 Nf6 3.Nxe5 d6 4.Nf3 Nxe4 5.d4 d5 6.Bd3 Bf5 {This is a popular variation of the Petroff these days, being a specialty of super GM Duda, who played it in the candidates tournament. GM So also knows this line well, having scored an important victory with black against Niemann in the Sinquefield Cup with it.} 7.O-O Be7 8.Re1 O-O 9.Nbd2 Nd6 10.Nf1 c6 11.Bf4 ( 11.Ng3 Bxd3 12.Qxd3 Na6 {this was played in Firouzja - Duda, Candidates Tournament 2022.} ) 11...Bxd3 12.Qxd3 Na6 13.Ne3 ( 13.Re2 Nc7 14.Rae1 Ne6 15.Bxd6 Bxd6 16.g3 Qd7 17.Ne3 Rae8 {with a slight plus for White in Anand - Caruana, Warsaw (rapid) 2022.} ) 13...Nc7 {Black's position is very solid but also quite passive. There are no weaknesses, but White's pieces are better developed, and it's easier for the first player to double rooks on the open e-file. Of course, at the elite level, players usually manage to defend this type of position, but for us mere mortals I think there are opening choices that lead to less suffering.} 14.b3 $5 {The plan with c2-c4 is typical and poses some problems for Black.} 14...Ne6 15.Be5 f6 {A new move.} ( 15...Ne4 {This move looks better and was played by So himself recently. Naturally he has his own ideas about it and some improvement on White's play.} 16.c4 Nf6 ( 16...Bb4 $5 ) 17.Rad1 g6 {Niemann - So, Sinquefield Cup 2022.} ) 16.Bg3 ( 16.Bxd6 {leads to forcing play. White has just a tiny edge after} 16...Bxd6 17.Nxd5 Bxh2+ 18.Kxh2 Qxd5 19.Re4 Rae8 20.Rae1 Nc7 ) 16...Nc7 ( 16...Ne4 {is a more natural move. Play might continue:} 17.c4 Nxg3 18.hxg3 Nc7 19.Nf5 Re8 {and Black has good chances of equalizing.} ) 17.c4 Qd7 18.Re2 {Another typical plan in this position.} 18...Rfe8 19.Rae1 Bf8 20.h4 $5 {An interesting idea. So wants to take the pawn to h5, gaining space, and then head the knight to f5 with Nh4. This pawn on h5 will be critical to White's victory, as we will see later.} 20...Rad8 ( 20...Qf7 {doesn't change much, since Black cannot capture the pawn after 21.h5.} 21.h5 Qxh5 $2 22.c5 Ndb5 23.a4 {and White wins material.} ) 21.h5 Qf7 22.a4 $1 {A subtle move that surprised me during the broadcast. White wants to remove the b5-square from the d6-knight, making the c4-c5 push more dangerous in some lines.} ( 22.Nh4 {This variation illustrates the idea of 22.a4.} 22...dxc4 $1 23.bxc4 Qxh5 24.c5 Ndb5 ) 22...a6 $6 {While White's a-pawn advance has a clear idea, it is not so simple to understand the merits of Black's move. It's more useful to protect the c7-knight, and for this reason I like 22...Rd7.} ( 22...Rd7 $1 ) ( 22...Ne4 $2 {It's useful to mention that this move loses a pawn for no compensation after} 23.Bxc7 Qxc7 24.cxd5 cxd5 25.Nxd5 Rxd5 26.Rxe4 ) 23.Nh4 dxc4 $2 {It's not a good idea to release the central tension, as the white pawns are too menacing.} ( 23...Ne4 $1 {is the right move and gives Black drawing chances after some simplifications.} 24.Bxc7 Qxc7 25.cxd5 cxd5 26.h6 $1 ( 26.Nxd5 {The immediate capture is less accurate.} 26...Rxd5 27.Rxe4 Rxe4 28.Qxe4 Qd7 {with good play for Black since both d4 and h5 are hanging.} ) 26...g6 27.Nxd5 Rxd5 28.Rxe4 Rxe4 29.Qxe4 Qf7 30.Qf4 Rd6 $1 {Black has good chances since the position has simplified, his pieces have more freedom, and the h6-pawn is weak. There is enough compensation for the pawn.} ) ( 23...Qxh5 $2 24.c5 {wins a piece.} ) 24.bxc4 Ne6 ( 24...c5 {Is an idea to block White's c-pawn, but the problems are far from over after} 25.d5 Qxh5 26.Nhf5 ) 25.c5 Nc8 {After this move, Black is lost, and So conducts the attack with machine-like precision. Black had two bold moves to complicate the game, although no one can blame the young Indian prodigy for not choosing them.} ( 25...Nb5 26.Nef5 $1 ( 26.axb5 Nxd4 {White is still able to gain an advantage after some precise moves.} 27.Bd6 $1 Bxd6 28.cxd6 Rxd6 29.Rd2 Nf3+ 30.Nxf3 Rxd3 31.Rxd3 axb5 32.h6 g6 33.Red1 {With a strong attack in this unbalanced position.} ) 26...Nbxd4 27.Nxd4 Nxc5 ( 27...Rxd4 28.Qxd4 Nxd4 29.Rxe8 {and White wins.} ) 28.Qf3 {White is much better.} ) ( 25...Ne4 $1 {is the best practical chance, although White has a clear advantage after} 26.Qxe4 Nxd4 27.Qg4 $1 Nxe2+ 28.Rxe2 Bxc5 29.Nef5 Kf8 30.Rxe8+ Rxe8 31.Nd6 ) 26.Nef5 $1 Nxc5 27.Qf3 {A strong double-pawn sacrifice. A queen and two knights are enough to mate Black's poor king.} 27...Rxe2 28.Qxe2 Nxa4 29.Qg4 $1 {Threatening 30.Nh6+.} 29...Qd7 ( 29...Kh8 30.Ng6+ $1 ) 30.Ng6 $1 {A delightful move.} 30...hxg6 31.hxg6 Ne7 32.Rxe7 $1 {The final detail.} 32...Qxe7 ( 32...Bxe7 33.Qh3 $1 Qe6 34.Nxe7+ Qxe7 35.Qh7+ Kf8 36.Qh8# ) 33.Nxe7+ Bxe7 34.Qe6+ 1-0